bitfinex/quotes_SOLUSD_20251208
["timestamp","ask_amount","ask_price","bid_price","bid_amount"]
[1765217869923,8.80994492,135.77,135.74,10.46822156]
[1765217870133,8.80994492,135.77,135.71,25.79017361]
[1765217870330,0.68,135.76,135.73,10.46822156]
[1765217870940,8.0460209,135.76,135.73,10.46822156]
[1765217871744,8.0460209,135.76,135.73,17.83571997]
[1765217871745,0.68,135.76,135.73,17.83571997]
[1765217871914,8.04596009,135.76,135.73,10.46822156]
[1765217872109,8.80994492,135.74,135.7,34.14593561]
[1765217872333,8.8,135.75,135.72,17.83593022]
[1765217872334,0.72,135.75,135.72,17.83593022]
[1765217873142,0.72,135.75,135.72,18.55593022]
[1765217873512,0.72,135.75,135.73,10.46822156]
[1765217875308,0.72,135.75,135.72,8.08770866]
[1765217875526,0.72,135.75,135.73,10.46822156]
[1765217876427,16.89590501,135.76,135.73,10.46822156]
[1765217877234,0.72,135.75,135.73,10.46822156]
[1765217877541,0.72,135.75,135.72,17.83615443]
[1765217877736,0.72,135.75,135.72,18.55615443]
[1765217878442,8.0866253,135.75,135.72,10.46822156]
[1765217878809,8.0866253,135.75,135.72,17.83626278]
[1765217879637,9.52994492,135.74,135.68,7.37015749]
[1765217879856,9.52994492,135.74,135.67,10.46822156]
[1765217879857,8.80994492,135.71,135.67,10.46822156]
[1765217880141,8.80994492,135.71,135.68,10.46822156]
[1765217880344,16.83862402,135.71,135.67,18.4986416]
[1765217880845,8.0272727,135.74,135.7,3.95452818]
[1765217881154,8.0272727,135.74,135.7,4.61452818]
[1765217881155,12.93689969,135.74,135.7,4.61452818]
[1765217881355,12.27689969,135.74,135.7,4.61452818]
[1765217881538,12.93689969,135.74,135.7,4.61452818]
[1765217882067,9.46994492,135.73,135.69,3.95452818]
[1765217882229,9.46994492,135.73,135.67,27.63400214]
[1765217882230,16.17876161,135.71,135.67,27.63400214]
[1765217882538,16.17876161,135.71,135.66,19.08758353]
[1765217882539,0.66,135.7,135.66,1e-08]
[1765217882726,12.7644731,135.67,135.66,1e-08]
[1765217883127,18.34073912,135.67,135.66,1e-08]
[1765217883638,44.67817334,135.67,135.66,1e-08]
[1765217884023,8.80994492,135.66,135.58,10.53452818]
[1765217884229,20.1369296,135.64,135.58,10.53452818]
[1765217884430,25.05319562,135.64,135.57,4.61452818]
[1765217884631,25.05319562,135.64,135.55,0.2]
[1765217884632,47.53102341,135.64,135.63,1e-08]
[1765217884826,40.68565138,135.64,135.63,1e-08]
[1765217885045,31.22215941,135.64,135.63,1e-08]
[1765217885261,37.35722931,135.64,135.63,1e-08]
[1765217885756,40.68565138,135.64,135.63,1e-08]
[1765217885957,31.22215941,135.64,135.63,1e-08]
[1765217886334,46.81644961,135.64,135.63,1e-08]
[1765217886647,40.68565138,135.64,135.63,1e-08]
[1765217886836,8.80994492,135.6,135.55,0.2]
[1765217887039,8.80994492,135.57,135.55,0.2]
[1765217887561,8.74,135.59,135.55,10.32349197]
[1765217887761,8.80994492,135.58,135.55,10.32349197]
[1765217888064,18.93343689,135.58,135.55,0.2]
[1765217888365,8.80994492,135.58,135.55,0.86]
[1765217888667,16.84586295,135.58,135.55,0.2]
[1765217888873,8.80994492,135.58,135.55,0.2]
[1765217889468,8.08,135.59,135.55,17.70078122]
[1765217889771,8.08,135.59,135.55,8.23728925]
[1765217889772,8.80994492,135.59,135.55,8.23728925]
[1765217889944,8.80994492,135.59,135.56,0.66]
[1765217890574,0.66,135.6,135.56,17.49993701]
[1765217891164,8.03471041,135.6,135.56,0.66]
[1765217891375,8.03471041,135.6,135.56,10.12349197]
[1765217891670,8.03471041,135.6,135.56,17.50027833]
[1765217891671,0.66,135.6,135.56,17.50027833]
[1765217892167,36.86228251,135.64,135.56,17.50027833]
[1765217892168,16.88994492,135.63,135.59,9.46349197]
[1765217892349,17.54994492,135.63,135.59,9.46349197]
[1765217892549,24.92312095,135.63,135.59,9.46349197]
[1765217892745,24.92312095,135.63,135.59,10.12349197]
[1765217893163,16.88994492,135.63,135.59,16.83863676]
[1765217893483,15.45204637,135.65,135.62,9.46349197]
[1765217893673,8.08,135.65,135.62,9.46349197]
[1765217893879,8.08,135.65,135.62,10.12349197]
[1765217894187,16.11198516,135.65,135.6,0.66]
[1765217894476,16.11198516,135.65,135.61,9.46349197]
[1765217894884,16.11198516,135.65,135.61,17.49743862]
[1765217895045,16.11198516,135.65,135.61,8.03394665]
[1765217895246,18.93343689,135.64,135.58,24.34421469]
[1765217895577,8.80994492,135.61,135.58,9.46349197]
[1765217896479,8.08,135.62,135.59,9.46349197]
[1765217896799,0.66,135.63,135.6,16.83800566]
[1765217896800,8.80994492,135.63,135.6,16.83800566]
[1765217897078,16.11288608,135.64,135.6,17.49800566]
[1765217897249,15.45288608,135.64,135.61,9.46349197]
[1765217897452,15.45288608,135.64,135.62,9.46349197]
[1765217897453,8.08,135.64,135.62,9.46349197]
[1765217897657,8.80994492,135.65,135.62,10.12349197]
[1765217897959,16.18191674,135.65,135.62,0.66]
[1765217898353,16.84191674,135.65,135.61,9.46349197]
[1765217898553,16.84191674,135.65,135.6,8.03451369]
[1765217898554,8.80994492,135.63,135.6,10.12349197]
[1765217898779,8.80994492,135.63,135.6,6.69468333]
[1765217899374,8.80994492,135.65,135.62,6.03468333]
[1765217899578,9.46994492,135.65,135.62,6.03468333]
[1765217899787,8.80994492,135.65,135.62,6.03468333]
[1765217900079,15.4515766,135.66,135.63,6.69468333]
[1765217900250,16.1115766,135.66,135.63,6.03468333]
[1765217900452,16.1115766,135.66,135.6,25.81103135]
[1765217900453,16.1115766,135.66,135.62,6.03468333]
[1765217900686,8.80994492,135.65,135.62,6.03468333]
[1765217900866,9.46994492,135.65,135.62,6.03468333]
[1765217901061,9.46994492,135.65,135.6,8.03445318]
[1765217901260,7.37031511,135.68,135.62,25.80694718]
[1765217901464,7.37031511,135.68,135.62,33.88694718]
[1765217901784,8.08,135.69,135.66,6.03468333]
[1765217901982,8.08,135.69,135.66,0.72]
[1765217902381,8.08,135.69,135.66,6.75468333]
[1765217902589,8.74,135.69,135.66,6.03468333]
[1765217902955,16.10984127,135.69,135.66,6.03468333]
[1765217903197,16.10984127,135.69,135.65,13.40628241]
[1765217903385,16.10984127,135.69,135.65,14.12628241]
[1765217903668,9.46994492,135.68,135.59,7.3746575]
[1765217903874,6.03468333,135.66,135.61,14.12843928]
[1765217904064,8.80994492,135.64,135.61,14.12843928]
[1765217904271,0.66,135.65,135.62,6.03468333]
[1765217904467,8.80994492,135.65,135.62,6.75468333]
[1765217905065,8.08,135.66,135.63,6.03468333]
[1765217905267,8.80994492,135.67,135.63,6.75468333]
[1765217905784,8.80994492,135.67,135.64,6.75468333]
[1765217906166,9.46994492,135.67,135.64,6.03468333]
[1765217906482,8.80994492,135.67,135.64,6.75468333]
[1765217906788,0.66,135.66,135.63,6.03468333]
[1765217907167,8.80994492,135.67,135.63,6.03468333]
[1765217907168,8.80994492,135.67,135.63,13.40766786]
[1765217907501,7.37028301,135.68,135.65,6.03468333]
[1765217907667,8.80994492,135.68,135.64,0.72]
[1765217907866,8.80994492,135.68,135.65,6.03468333]
[1765217908261,8.80994492,135.68,135.65,6.75468333]
[1765217908795,16.84051759,135.68,135.64,6.03468333]
[1765217908960,16.84051759,135.68,135.64,6.75468333]
[1765217909269,16.84051759,135.68,135.64,14.12703323]
[1765217909466,8.80994492,135.65,135.61,7.37404691]
[1765217909667,8.80994492,135.65,135.6,24.40343239]
[1765217909860,9.46994492,135.65,135.61,6.03468333]
[1765217910059,8.80994492,135.65,135.61,14.1283689]
[1765217910487,8.80994492,135.65,135.62,14.12816642]
[1765217910664,8.08,135.66,135.63,6.03468333]
[1765217910856,18.42071119,135.72,135.66,16.308864]
[1765217911061,8.80994492,135.7,135.68,6.03468333]
[1765217911284,8.80994492,135.7,135.66,6.75468333]
[1765217911476,0.66,135.69,135.66,6.03468333]
[1765217911790,0.66,135.69,135.65,31.14354733]
[1765217911966,8.80994492,135.7,135.66,6.03468333]
[1765217912159,9.46994492,135.7,135.66,6.75468333]
[1765217912679,8.08,135.71,135.68,6.03468333]
[1765217912991,8.80994492,135.72,135.69,6.75468333]
[1765217913282,8.80994492,135.72,135.7,6.03468333]
[1765217913487,8.80994492,135.72,135.69,6.75468333]
[1765217913683,16.83810659,135.72,135.69,6.03468333]
[1765217914070,0.66,135.71,135.68,13.40493483]
[1765217914372,16.83810659,135.72,135.68,14.12493483]
[1765217914580,8.08,135.73,135.7,6.03468333]
[1765217914768,8.74,135.73,135.7,6.03468333]
[1765217915085,8.80994492,135.74,135.71,6.75468333]
[1765217915387,9.46994492,135.74,135.7,13.40365114]
[1765217915591,9.46994492,135.74,135.71,6.03468333]
[1765217916176,9.46994492,135.74,135.7,14.12365114]
[1765217916687,16.1771094,135.74,135.7,13.40365114]
[1765217916890,8.80994492,135.72,135.68,25.108864]
[1765217917099,9.46994492,135.72,135.68,31.14354733]
[1765217917263,7.36759121,135.73,135.69,6.03468333]
[1765217917462,7.36759121,135.73,135.7,14.12382152]
[1765217918294,8.02759121,135.73,135.7,6.03468333]
[1765217918593,8.74,135.75,135.7,14.12370587]
[1765217918777,9.46994492,135.74,135.7,14.12370587]
[1765217919384,9.46994492,135.74,135.71,6.03468333]
[1765217919962,16.83705586,135.74,135.7,14.12370587]
[1765217920390,0.66,135.77,135.73,6.03468333]
[1765217920598,8.80994492,135.76,135.73,6.03468333]
[1765217920895,8.80994492,135.76,135.73,13.40216433]
[1765217921189,9.46994492,135.76,135.73,13.40216433]
[1765217921394,16.83611276,135.76,135.72,13.40269477]
[1765217921575,14.84462825,135.74,135.69,6.03468333]
[1765217921776,8.80994492,135.71,135.67,6.03468333]
[1765217922092,8.80994492,135.72,135.69,6.03468333]
[1765217922281,8.80994492,135.72,135.69,6.75468333]
[1765217922467,8.80994492,135.72,135.69,6.03468333]
[1765217922787,9.46994492,135.72,135.68,13.40494031]
[1765217922985,16.8383707,135.72,135.68,14.12494031]
[1765217923183,0.66,135.71,135.68,13.40494031]
[1765217923694,0.66,135.71,135.67,18.42606843]
[1765217923695,0.66,135.71,135.67,13.4053088]
[1765217924073,0.66,135.71,135.67,6.03468333]
[1765217924896,8.02899396,135.71,135.67,6.03468333]
[1765217925064,0.66,135.7,135.67,13.40546744]
[1765217925497,7.36899396,135.71,135.67,14.12546744]
[1765217925789,8.02899396,135.71,135.67,14.12546744]
[1765217925992,8.80994492,135.7,135.67,14.12546744]
[1765217926402,9.46994492,135.7,135.67,14.12546744]
[1765217926607,15.44899396,135.71,135.67,14.12546744]
[1765217926905,17.54994492,135.71,135.68,6.03468333]
[1765217927212,8.08,135.71,135.7,6.03468333]
[1765217927375,0.66,135.71,135.69,6.03468333]
[1765217927581,8.80994492,135.72,135.69,6.03468333]
[1765217927794,9.46994492,135.72,135.69,6.03468333]
[1765217928402,16.83806562,135.72,135.69,6.03468333]
[1765217928605,16.83806562,135.72,135.69,13.40437714]
[1765217929097,0.66,135.71,135.68,6.03468333]
[1765217929282,0.66,135.71,135.68,13.40494935]
[1765217929478,0.66,135.71,135.68,14.12494935]
[1765217931391,0.66,135.71,135.68,13.40494935]
[1765217931798,0.66,135.71,135.66,16.308864]
[1765217931995,0.66,135.71,135.61,63.09999999]
[1765217931996,14.84462825,135.69,135.65,7.37158988]
[1765217932313,8.80994492,135.69,135.65,29.7152343]
[1765217932613,16.85992626,135.69,135.65,30.3952343]
[1765217932814,16.85992626,135.69,135.65,23.68055097]
[1765217933018,16.85992626,135.69,135.65,30.3952343]
[1765217933508,0.68,135.68,135.65,30.3952343]
[1765217933689,0.68,135.68,135.61,0.68]
[1765217933690,30.29545451,135.67,135.61,0.68]
[1765217933888,6.03468333,135.66,135.61,8.05379205]
[1765217934107,14.84462825,135.65,135.6,13.4091683]
[1765217934292,8.08,135.64,135.6,13.4091683]
[1765217934618,8.76,135.64,135.6,13.4091683]
[1765217934814,8.76,135.64,135.6,14.0891683]
[1765217935192,14.84462825,135.65,135.6,14.0891683]
[1765217935193,8.76,135.66,135.63,16.308864]
[1765217935519,8.76,135.66,135.63,22.34354733]
[1765217935520,8.80994492,135.66,135.63,22.34354733]
[1765217935708,16.86138867,135.66,135.63,6.03468333]
[1765217935911,0.68,135.65,135.62,13.40799976]
[1765217937097,8.80994492,135.66,135.63,7.37289647]
[1765217937296,9.48994492,135.66,135.63,7.37289647]
[1765217937817,8.80994492,135.67,135.64,6.03468333]
[1765217938116,8.80994492,135.67,135.63,8.05289647]
[1765217938117,9.48994492,135.67,135.63,14.0875798]
[1765217938321,8.08,135.68,135.65,6.03468333]
[1765217938818,14.41457802,135.69,135.66,6.71468333]
[1765217938819,8.80994492,135.69,135.66,6.71468333]
[1765217939018,16.17971512,135.69,135.66,6.03468333]
[1765217939197,9.48994492,135.69,135.66,6.03468333]
[1765217939794,6.71468333,135.68,135.61,19.11508849]
[1765217940002,6.03468333,135.65,135.6,13.4089621]
[1765217940195,14.84462825,135.66,135.61,13.40860425]
[1765217940428,15.56462825,135.66,135.61,13.40860425]
[1765217940729,16.89977417,135.69,135.65,6.03468333]
[1765217940912,24.97977417,135.69,135.65,6.03468333]
[1765217941219,16.16982925,135.69,135.65,6.03468333]
[1765217941421,15.56462825,135.68,135.63,6.03468333]
[1765217941799,16.1816151,135.66,135.62,37.77661867]
[1765217942128,16.88994492,135.66,135.63,6.03468333]
[1765217942312,16.88994492,135.66,135.62,7.37348176]
[1765217942313,0.72,135.65,135.62,7.37348176]
[1765217942502,0.72,135.65,135.63,6.03468333]
[1765217943436,14.84462825,135.64,135.58,6.03468333]
[1765217943735,13.0181663,135.65,135.58,6.03468333]
[1765217943736,8.80994492,135.61,135.58,7.37563119]
[1765217943933,0.72,135.6,135.57,6.03468333]
[1765217944547,0.72,135.6,135.57,13.41083002]
[1765217945320,16.18542517,135.59,135.55,0.2]
[1765217945618,16.18520027,135.59,135.55,13.61178924]
[1765217945797,0.72,135.58,135.55,7.57731274]
[1765217946208,0.72,135.58,135.55,0.2]
[1765217946831,8.80994492,135.57,135.55,0.2]
[1765217947024,8.08,135.6,135.55,0.2]
[1765217947025,16.88994492,135.6,135.56,6.03468333]
[1765217947206,17.60994492,135.6,135.56,6.03468333]
[1765217947531,6.75468333,135.59,135.55,0.2]
[1765217947913,8.80994492,135.57,135.55,0.2]
[1765217948314,0.72,135.57,135.55,0.2]
[1765217948629,15.56462825,135.59,135.55,0.2]
[1765217948823,8.80994492,135.57,135.55,0.2]
[1765217949548,8.08,135.6,135.56,6.03468333]
[1765217949705,8.80994492,135.61,135.58,6.03468333]
[1765217950028,8.80994492,135.61,135.55,16.36726787]
[1765217950029,8.08,135.62,135.59,6.03468333]
[1765217950341,15.45369473,135.62,135.58,6.03468333]
[1765217950707,16.17369473,135.62,135.58,6.74468333]
[1765217950905,16.17369473,135.62,135.58,0.71]
[1765217951123,16.17369473,135.62,135.58,14.12017923]
[1765217952330,8.80994492,135.63,135.6,6.03468333]
[1765217952531,8.80994492,135.65,135.62,6.03468333]
[1765217952719,0.72,135.66,135.63,6.03468333]
[1765217953230,8.09155041,135.66,135.63,6.03468333]
[1765217955311,7.37155041,135.66,135.64,0.71]
[1765217955512,24.26099048,135.67,135.64,6.74468333]
[1765217955758,16.88994492,135.67,135.65,6.03468333]
[1765217956040,8.80994492,135.67,135.65,6.03468333]
[1765217956179,8.80994492,135.67,135.65,6.74468333]
[1765217956428,15.44990046,135.69,135.66,6.03468333]
[1765217956818,8.8,135.69,135.66,6.03468333]
[1765217957008,8.80994492,135.71,135.68,6.03468333]
[1765217957209,16.17872905,135.71,135.68,6.03468333]
[1765217957419,8.80994492,135.71,135.68,14.11491849]
[1765217957639,16.89862884,135.71,135.67,13.40532354]
[1765217958113,16.89862884,135.71,135.67,14.11532354]
[1765217958313,16.89862884,135.71,135.68,6.03468333]
[1765217958509,16.17697011,135.74,135.7,6.03468333]
[1765217958809,8.80994492,135.74,135.7,6.03468333]
[1765217959013,0.72,135.73,135.7,6.03468333]
[1765217959438,8.80994492,135.74,135.71,0.71]
[1765217959637,8.80994492,135.74,135.71,6.74468333]
[1765217960440,7.36595843,135.76,135.73,6.03468333]
[1765217960631,16.88994492,135.77,135.74,6.74468333]
[1765217960829,0.72,135.76,135.72,10.48569946]
[1765217961339,8.08609731,135.76,135.72,18.55375027]
[1765217961836,19.96564438,135.75,135.7,16.308864]
[1765217962040,19.96564438,135.75,135.7,10.48569946]
[1765217962221,0.67,135.74,135.7,10.48569946]
[1765217962416,0.67,135.74,135.69,8.069692]
[1765217962623,8.80994492,135.73,135.7,10.48569946]
[1765217963139,8.80994492,135.7,135.66,10.48569946]
[1765217963341,16.88994492,135.7,135.66,10.48569946]
[1765217963643,8.08,135.7,135.68,10.48569946]
[1765217963940,16.17861656,135.71,135.68,10.48569946]
[1765217964140,16.17861656,135.71,135.67,0.7]
[1765217964141,16.17861656,135.71,135.67,11.18569946]
[1765217964342,16.84861656,135.71,135.67,11.18569946]
[1765217964731,0.67,135.7,135.66,10.48569946]
[1765217965114,0.67,135.7,135.67,10.48569946]
[1765217965317,16.17861656,135.71,135.67,17.85634891]
[1765217965534,15.44832409,135.72,135.68,11.18569946]
[1765217965738,8.08,135.72,135.7,10.48569946]
[1765217965932,8.80994492,135.73,135.69,11.18569946]
[1765217966543,15.44717318,135.74,135.7,11.18569946]
[1765217966731,8.08,135.74,135.7,11.18569946]
[1765217966926,8.08,135.74,135.71,10.48569946]
[1765217967133,34.7413707,135.77,135.72,10.48569946]
[1765217967466,8.0360633,135.76,135.72,17.85367599]
[1765217968151,16.88994492,135.77,135.74,10.48569946]
[1765217968355,16.88994492,135.77,135.73,0.7]
[1765217968534,17.55994492,135.77,135.73,11.18569946]
[1765217969121,24.9254572,135.77,135.73,11.18569946]
[1765217969322,16.8454572,135.77,135.73,11.18569946]
[1765217969545,16.8454572,135.77,135.73,18.55321489]
[1765217973349,8.80994492,135.74,135.71,17.85432367]
[1765217973536,8.80994492,135.74,135.71,18.55432367]
[1765217974121,8.80994492,135.74,135.71,8.06862421]
[1765217975231,16.11671786,135.75,135.71,18.55432367]
[1765217975232,8.75,135.75,135.71,18.55432367]
[1765217975439,17.55994492,135.75,135.72,0.7]
[1765217975639,17.55994492,135.75,135.71,18.55432367]
[1765217976325,8.08,135.75,135.72,11.18569946]
[1765217976726,8.08,135.75,135.72,18.55334165]
[1765217976921,8.80994492,135.76,135.72,17.85334165]
[1765217977154,8.80994492,135.77,135.74,10.48569946]
[1765217977455,9.47994492,135.77,135.73,11.18569946]
[1765217977833,9.47994492,135.77,135.73,10.48569946]
[1765217978149,8.80994492,135.73,135.62,0.99999999]
[1765217978355,16.88994492,135.73,135.68,10.48569946]
[1765217978656,28.04564438,135.73,135.68,10.48569946]
[1765217978832,28.04564438,135.73,135.68,11.18569946]
[1765217979229,28.04564438,135.73,135.69,8.06935222]
[1765217979749,17.55994492,135.73,135.69,8.06935222]
[1765217980072,8.80994492,135.74,135.7,11.18569946]
[1765217980366,19.29564438,135.74,135.7,0.7]
[1765217980674,19.96564438,135.74,135.7,0.7]
[1765217981463,27.33317582,135.74,135.7,8.0691903]
[1765217982333,0.67,135.73,135.7,0.7]
[1765217983245,0.67,135.73,135.7,8.06915817]
[1765217983451,26.66317582,135.74,135.7,8.06915817]
[1765217983756,16.84747636,135.74,135.7,8.06915817]
[1765217984153,16.84747636,135.74,135.7,7.36915817]
[1765217984459,16.84747636,135.74,135.7,8.06915817]
[1765217985254,16.84747636,135.74,135.68,18.4250726]
[1765217985255,8.80994492,135.72,135.67,11.18569946]
[1765217985554,16.88994492,135.72,135.67,18.54569946]
[1765217985860,17.55994492,135.72,135.68,8.06997461]
[1765217986361,17.55994492,135.72,135.69,7.36960899]
[1765217986562,17.55994492,135.72,135.68,18.55574249]
[1765217986740,15.44753144,135.74,135.7,7.36917859]
[1765217987067,15.44753144,135.74,135.7,17.85487805]
[1765217987239,9.47994492,135.75,135.7,17.85487805]
[1765217987240,16.17643159,135.75,135.71,11.18569946]
[1765217987440,24.92643159,135.75,135.71,11.18569946]
[1765217987862,24.92643159,135.75,135.71,10.48569946]
[1765217987863,16.88994492,135.75,135.71,10.48569946]
[1765217988060,8.08,135.75,135.72,11.18569946]
[1765217988267,7.3660683,135.76,135.72,11.18569946]
[1765217988452,8.0360683,135.76,135.72,11.18569946]
[1765217988851,19.96564438,135.75,135.7,7.36917859]
[1765217989367,16.1172728,135.74,135.7,8.06917859]
[1765217989757,16.1172728,135.74,135.7,18.55487805]
[1765217991950,16.11711759,135.74,135.7,18.55487805]
[1765217992447,0.7,135.77,135.73,10.48569946]
[1765217992654,0.7,135.77,135.74,10.48569946]
[1765217993247,0.7,135.77,135.74,11.15569946]
[1765217993469,8.90994492,135.78,135.74,18.52229657]
[1765217993659,9.60994492,135.78,135.75,0.67]
[1765217993866,8.90994492,135.78,135.75,0.67]
[1765217994063,0.1,135.78,135.75,11.15569946]
[1765217994257,0.1,135.78,135.76,10.48569946]
[1765217994454,0.1,135.78,135.76,11.15569946]
[1765217995561,0.1,135.78,135.76,18.52141536]
[1765217996064,0.1,135.78,135.75,17.85193662]
[1765217996377,0.1,135.78,135.76,7.36578357]
[1765217997259,0.1,135.78,135.77,11.15569946]
[1765217997562,0.1,135.78,135.77,26.58109682]
[1765217997762,0.1,135.78,135.77,42.88996082]
[1765218001051,4.92732465,135.84,135.8,16.308864]
[1765218001285,7.45981018,135.88,135.83,10.48569946]
[1765218001457,5.59958822,135.87,135.84,10.48569946]
[1765218001663,4.92958822,135.86,135.83,10.48569946]
[1765218001894,4.92958822,135.85,135.83,10.48569946]
[1765218002071,8.80994492,135.84,135.8,26.79456346]
[1765218002273,16.84196341,135.84,135.8,26.79456346]
[1765218002582,16.84196341,135.84,135.8,34.15831714]
[1765218002583,0.67,135.83,135.8,34.15831714]
[1765218002964,0.67,135.86,135.82,10.48569946]
[1765218003284,4.9256804,135.85,135.82,10.48569946]
[1765218003475,4.9256804,135.85,135.83,10.48569946]
[1765218003654,4.9256804,135.86,135.84,10.48569946]
[1765218003853,5.5956804,135.86,135.83,11.19569946]
[1765218004152,5.5956804,135.86,135.83,10.48569946]
[1765218004480,12.95626135,135.86,135.83,10.48569946]
[1765218004671,12.95626135,135.86,135.82,7.36245312]
[1765218004672,0.67,135.85,135.82,17.84815258]
[1765218005398,4.9256804,135.86,135.83,17.84778693]
[1765218005694,0.67,135.86,135.83,17.84778693]
[1765218007192,0.67,135.86,135.83,18.55778693]
[1765218007372,24.99956338,135.88,135.84,10.48569946]
[1765218007573,0.67,135.87,135.84,10.48569946]
[1765218008097,0.67,135.87,135.84,11.19569946]
[1765218008293,0.67,135.87,135.84,17.84687814]
[1765218009173,0.1,135.88,135.86,10.48569946]
[1765218009498,0.1,135.88,135.87,10.48569946]
[1765218009674,0.1,135.88,135.87,19.25569946]
[1765218010497,0.1,135.88,135.87,26.6156759]
[1765218011799,0.1,135.88,135.87,16.12997644]
[1765218011988,0.1,135.88,135.87,26.6156759]
[1765218012799,0.1,135.89,135.87,26.6156759]
[1765218012998,0.1,135.95,135.91,16.308864]
[1765218013200,0.1,135.95,135.92,10.48569946]
[1765218013399,0.1,135.95,135.94,10.48569946]
[1765218013703,0.1,135.95,135.91,24.368864]
[1765218013704,0.1,135.95,135.93,11.19569946]
[1765218013901,0.1,135.95,135.92,10.48569946]
[1765218014109,0.1,135.95,135.92,11.19569946]
[1765218014410,7.35672772,135.93,135.9,16.308864]
[1765218014579,17.84242718,135.93,135.88,25.90492225]
[1765218014782,0.67,135.92,135.88,25.90492225]
[1765218014986,0.67,135.92,135.88,8.06]
[1765218015185,19.29564438,135.91,135.85,25.90671033]
[1765218015388,19.29564438,135.91,135.86,16.308864]
[1765218015590,0.67,135.9,135.86,26.79456346]
[1765218015808,0.67,135.9,135.86,34.15506461]
[1765218016012,0.67,135.9,135.87,17.84557046]
[1765218016521,8.02846688,135.9,135.86,24.37914919]
[1765218016687,8.02846688,135.9,135.85,25.9065971]
[1765218016889,8.80994492,135.88,135.84,10.48569946]
[1765218017211,19.29564438,135.88,135.82,36.95214243]
[1765218017393,0.67,135.87,135.83,10.48569946]
[1765218017915,0.67,135.87,135.83,18.55762483]
[1765218018288,0.67,135.87,135.84,7.3614978]
[1765218018818,8.03005233,135.87,135.83,8.07192779]
[1765218019121,8.80994492,135.86,135.82,16.308864]
[1765218019417,0.67,135.85,135.81,10.48569946]
[1765218019613,8.80994492,135.86,135.82,11.19569946]
[1765218019815,15.42005233,135.87,135.83,7.36212064]
[1765218020024,8.73,135.87,135.83,18.5578201]
[1765218020240,0.67,135.87,135.83,26.6178201]
[1765218020818,0.67,135.87,135.83,16.13212064]
[1765218021014,0.67,135.87,135.83,22.14607242]
[1765218021333,0.66,135.89,135.84,6.70395178]
[1765218021527,0.66,135.89,135.85,6.01395178]
[1765218021840,8.06,135.9,135.86,6.01395178]
[1765218022034,8.06,135.9,135.86,6.70395178]
[1765218022217,8.72,135.9,135.86,6.70395178]
[1765218022942,8.06,135.93,135.87,7.35997644]
[1765218023110,0.66,135.93,135.89,6.01395178]
[1765218023539,8.11578995,135.95,135.9,6.70395178]
[1765218023865,0.76,135.95,135.9,6.70395178]
[1765218024144,0.76,135.95,135.91,6.70395178]
[1765218024643,0.1,135.95,135.92,6.70395178]
[1765218024814,0.1,135.95,135.93,13.3706795]
[1765218025017,0.1,135.95,135.92,8.06]
[1765218025237,0.66,135.94,135.91,7.3575053]
[1765218026543,0.66,135.94,135.91,7.3577763]
[1765218027113,0.1,135.95,135.91,13.37172808]
[1765218027326,0.76,135.95,135.91,14.06172808]
[1765218027536,14.12975522,135.95,135.9,23.66697955]
[1765218027962,0.66,135.94,135.9,23.66697955]
[1765218028161,0.66,135.94,135.9,16.308864]
[1765218028366,0.1,135.95,135.91,6.70395178]
[1765218028538,0.66,135.94,135.9,29.68092849]
[1765218028739,6.67395178,135.94,135.9,16.308864]
[1765218029039,7.35672772,135.93,135.9,16.308864]
[1765218029243,8.01672772,135.93,135.89,15.41866401]
[1765218029440,0.66,135.93,135.9,7.35829717]
[1765218029647,8.11587917,135.95,135.9,8.04829717]
[1765218029858,16.92582409,135.95,135.9,8.04829717]
[1765218030069,0.66,135.94,135.9,7.35829717]
[1765218030249,0.66,135.94,135.9,8.04829717]
[1765218030650,0.66,135.94,135.9,14.06224895]
[1765218030837,0.1,135.95,135.93,6.01395178]
[1765218031246,0.1,135.95,135.94,6.70395178]
[1765218031551,0.1,135.95,135.94,6.01395178]
[1765218031941,0.1,135.95,135.94,6.70395178]
[1765218032269,0.1,135.95,135.94,23.01281578]
[1765218032966,0.1,135.95,135.94,30.36900233]
[1765218034186,1e-08,135.95,135.94,14.06013833]
[1765218034342,1e-08,135.96,135.95,25.80880892]
[1765218034536,1e-08,135.96,135.95,39.8827607]
[1765218034967,1e-08,135.96,135.95,47.23840615]
[1765218035672,0.1,135.99,135.95,102.40574707]
[1765218035847,0.1,135.99,135.98,22.32281578]